[Event "*** Titled Tuesday Blitz"]
[Site "Chess.com"]
[Date "2018.10.02"]
[Round "6"]
[White "Fins0905"]
[Black "woodhy"]
[Result "1-0"]
[WhiteElo "2576"]
[BlackElo "2404"]
[TimeControl "180+2"]
[EndTime "14:20:47 PDT"]
[Termination "Fins0905 won by checkmate"]

1. d4 {[%clk 0:03:01.9]} 1... e6 {[%clk 0:03:01.9]} 2. c4 {[%clk 0:03:02.9]}
2... Nf6 {[%clk 0:03:02.7]} 3. Nf3 {[%clk 0:03:03.6]} 3... b6 {[%clk 0:03:03.2]}
4. g3 {[%clk 0:03:04.5]} 4... Bb7 {[%clk 0:03:04.3]} 5. Bg2 {[%clk 0:03:05.4]}
5... Bb4+ {[%clk 0:03:05.8]} 6. Bd2 {[%clk 0:03:05.6]} 6... a5 {[%clk
0:03:07.1]} 7. O-O {[%clk 0:03:05.9]} 7... O-O {[%clk 0:03:07.5]} 8. Bf4 {[%clk
0:03:06.9]} 8... Ne4 {[%clk 0:03:03.7]} 9. Qc2 {[%clk 0:02:57.9]} 9... Bd6
{[%clk 0:02:56.8]} 10. Ng5 {[%clk 0:02:40.9]} 10... Bxf4 {[%clk 0:02:40.8]} 11.
Nxe4 {[%clk 0:02:35.5]} 11... Bh6 {[%clk 0:01:59.1]} 12. Nbc3 {[%clk 0:02:23.9]}
12... Nc6 {[%clk 0:01:56.1]} 13. e3 {[%clk 0:02:17.1]} 13... f5 {[%clk
0:01:52.2]} 14. Nd2 {[%clk 0:02:17.3]} 14... Nb4 {[%clk 0:01:51.6]} 15. Qb1
{[%clk 0:02:12.1]} 15... Bxg2 {[%clk 0:01:53.5]} 16. Kxg2 {[%clk 0:02:13.6]}
16... Nc6 {[%clk 0:01:51.5]} 17. f4 {[%clk 0:02:08.3]} 17... g6 {[%clk
0:01:51.1]} 18. a3 {[%clk 0:02:00]} 18... Bg7 {[%clk 0:01:42.5]} 19. Qd3 {[%clk
0:02:00.5]} 19... Qe7 {[%clk 0:01:34.5]} 20. Nf3 {[%clk 0:01:55.2]} 20... h6
{[%clk 0:01:32.4]} 21. Rad1 {[%clk 0:01:50.4]} 21... d6 {[%clk 0:01:16.7]} 22.
d5 {[%clk 0:01:44.8]} 22... Nd8 {[%clk 0:01:11]} 23. Rfe1 {[%clk 0:01:30.1]}
23... e5 {[%clk 0:01:06.5]} 24. e4 {[%clk 0:01:30.4]} 24... fxe4 {[%clk
0:00:57.9]} 25. Qxe4 {[%clk 0:01:24.4]} 25... Qf7 {[%clk 0:00:47]} 26. fxe5
{[%clk 0:01:21.8]} 26... Bxe5 {[%clk 0:00:46.8]} 27. Nxe5 {[%clk 0:01:21.2]}
27... dxe5 {[%clk 0:00:44]} 28. Rf1 {[%clk 0:01:11.5]} 28... Qg7 {[%clk
0:00:40]} 29. Rxf8+ {[%clk 0:01:09.6]} 29... Kxf8 {[%clk 0:00:41.9]} 30. Rf1+
{[%clk 0:01:03.8]} 30... Kg8 {[%clk 0:00:36]} 31. d6 {[%clk 0:01:02]} 31... c6
{[%clk 0:00:35.5]} 32. Nd5 {[%clk 0:00:58]} 32... Rb8 {[%clk 0:00:17.8]} 33.
Ne7+ {[%clk 0:00:48.8]} 33... Kh7 {[%clk 0:00:19.1]} 34. h4 {[%clk 0:00:40.6]}
34... c5 {[%clk 0:00:17.4]} 35. h5 {[%clk 0:00:40.8]} 35... Ne6 {[%clk
0:00:17.3]} 36. hxg6+ {[%clk 0:00:37.4]} 36... Kh8 {[%clk 0:00:18.3]} 37. Rf7
{[%clk 0:00:37.2]} 37... Ng5 {[%clk 0:00:14.6]} 38. Rxg7 {[%clk 0:00:37.1]}
38... Nxe4 {[%clk 0:00:15.9]} 39. Rh7# {[%clk 0:00:38.4]} 1-0

[Event "*** Titled Tuesday Blitz"]
[Site "Chess.com"]
[Date "2018.10.02"]
[Round "6"]
[White "vovachesss"]
[Black "Alopekos"]
[Result "1-0"]
[WhiteElo "2473"]
[BlackElo "2429"]
[TimeControl "180+2"]
[EndTime "14:20:48 PDT"]
[Termination "vovachesss won by resignation"]

1. d4 {[%clk 0:03:01.9]} 1... Nf6 {[%clk 0:03:00.8]} 2. Nc3 {[%clk 0:02:54.5]}
2... d5 {[%clk 0:02:55.5]} 3. Bg5 {[%clk 0:02:53.9]} 3... c5 {[%clk 0:02:33.6]}
4. e4 {[%clk 0:02:46.4]} 4... Nxe4 {[%clk 0:02:24.7]} 5. Nxe4 {[%clk 0:02:42.8]}
5... dxe4 {[%clk 0:02:26.6]} 6. d5 {[%clk 0:02:40.2]} 6... f6 {[%clk 0:01:56.7]}
7. Be3 {[%clk 0:02:22.8]} 7... e6 {[%clk 0:01:56.6]} 8. Bb5+ {[%clk 0:02:16]}
8... Bd7 {[%clk 0:01:56.7]} 9. Bxd7+ {[%clk 0:02:09.3]} 9... Qxd7 {[%clk
0:01:58.6]} 10. dxe6 {[%clk 0:02:08.8]} 10... Qxe6 {[%clk 0:01:42]} 11. Ne2
{[%clk 0:02:09.6]} 11... Bd6 {[%clk 0:01:41.2]} 12. Bf4 {[%clk 0:01:45.7]} 12...
Bxf4 {[%clk 0:01:21.3]} 13. Nxf4 {[%clk 0:01:46.5]} 13... Qe5 {[%clk 0:01:23.2]}
14. Qg4 {[%clk 0:00:59.4]} 14... f5 {[%clk 0:01:01.7]} 15. Qh5+ {[%clk
0:00:47.9]} 15... g6 {[%clk 0:01:00.3]} 16. Nxg6 {[%clk 0:00:37.9]} 16... hxg6
{[%clk 0:01:01]} 17. Qxg6+ {[%clk 0:00:39.8]} 17... Ke7 {[%clk 0:00:59.2]} 18.
O-O-O {[%clk 0:00:41.7]} 18... Qf6 {[%clk 0:00:25.2]} 19. Qg3 {[%clk 0:00:41.1]}
19... Nd7 {[%clk 0:00:20.3]} 20. Rd5 {[%clk 0:00:36.9]} 20... Rad8 {[%clk
0:00:06.7]} 21. Rhd1 {[%clk 0:00:37.3]} 21... Rhe8 {[%clk 0:00:04]} 22. Rd6
{[%clk 0:00:30.7]} 22... Qf7 {[%clk 0:00:03.5]} 23. Rg6 {[%clk 0:00:21.2]} 23...
Rg8 {[%clk 0:00:04]} 24. Qd6+ {[%clk 0:00:21.5]} 24... Ke8 {[%clk 0:00:03.8]}
25. Re6+ {[%clk 0:00:23.4]} 25... Qxe6 {[%clk 0:00:03.6]} 26. Qxe6+ {[%clk
0:00:25.3]} 26... Kf8 {[%clk 0:00:05.3]} 27. Rxd7 {[%clk 0:00:26.9]} 27... Rxd7
{[%clk 0:00:06.9]} 28. Qxd7 {[%clk 0:00:28.5]} 28... Rxg2 {[%clk 0:00:07.2]} 29.
Qxf5+ {[%clk 0:00:29.8]} 29... Kg7 {[%clk 0:00:08]} 30. Qxe4 {[%clk 0:00:31]}
30... Rxf2 {[%clk 0:00:08.9]} 31. Qg4+ {[%clk 0:00:32.2]} 31... Kf7 {[%clk
0:00:08.7]} 32. Qd7+ {[%clk 0:00:32.6]} 32... Kg6 {[%clk 0:00:09.2]} 33. Qd6+
{[%clk 0:00:31.3]} 33... Rf6 {[%clk 0:00:06.9]} 34. Qxc5 {[%clk 0:00:31.7]} 1-0

[Event "*** Titled Tuesday Blitz"]
[Site "Chess.com"]
[Date "2018.10.02"]
[Round "6"]
[White "luizzy"]
[Black "saraswathii"]
[Result "0-1"]
[WhiteElo "2396"]
[BlackElo "2328"]
[TimeControl "180+2"]
[EndTime "14:20:52 PDT"]
[Termination "saraswathii won by resignation"]

1. d4 {[%clk 0:03:01.9]} 1... Nc6 {[%clk 0:02:59.8]} 2. Nf3 {[%clk 0:03:00]}
2... d5 {[%clk 0:02:59.5]} 3. Bf4 {[%clk 0:02:56.3]} 3... Bf5 {[%clk 0:02:59.1]}
4. a3 {[%clk 0:02:54.6]} 4... Nf6 {[%clk 0:02:59.6]} 5. Nc3 {[%clk 0:02:55]}
5... a6 {[%clk 0:02:54.7]} 6. e3 {[%clk 0:02:55.8]} 6... e6 {[%clk 0:02:55.7]}
7. h3 {[%clk 0:02:56.9]} 7... Bd6 {[%clk 0:02:56.6]} 8. Bxd6 {[%clk 0:02:36.4]}
8... Qxd6 {[%clk 0:02:58.5]} 9. Bd3 {[%clk 0:02:38]} 9... Bg6 {[%clk 0:02:58.5]}
10. O-O {[%clk 0:02:37.5]} 10... O-O {[%clk 0:02:58.9]} 11. Ne2 {[%clk
0:02:38.6]} 11... e5 {[%clk 0:02:58.3]} 12. dxe5 {[%clk 0:02:39.2]} 12... Nxe5
{[%clk 0:03:00.2]} 13. Nxe5 {[%clk 0:02:38.9]} 13... Qxe5 {[%clk 0:03:02.1]} 14.
Bxg6 {[%clk 0:02:27.5]} 14... hxg6 {[%clk 0:03:01.8]} 15. Qd4 {[%clk 0:02:28.8]}
15... Qxd4 {[%clk 0:03:01]} 16. exd4 {[%clk 0:02:30.7]} 16... Rfe8 {[%clk
0:03:01.8]} 17. Rfe1 {[%clk 0:02:30.5]} 17... Re4 {[%clk 0:02:59]} 18. f3 {[%clk
0:02:29]} 18... Re3 {[%clk 0:02:54.8]} 19. Nf4 {[%clk 0:02:26.2]} 19... Rae8
{[%clk 0:02:56]} 20. Kf2 {[%clk 0:02:27.6]} 20... Rxe1 {[%clk 0:02:55.7]} 21.
Rxe1 {[%clk 0:02:29.5]} 21... Rxe1 {[%clk 0:02:55.7]} 22. Kxe1 {[%clk
0:02:31.4]} 22... Kf8 {[%clk 0:02:54.8]} 23. Kd2 {[%clk 0:02:31.5]} 23... Ke7
{[%clk 0:02:53.5]} 24. b3 {[%clk 0:02:30.8]} 24... Kd6 {[%clk 0:02:53.9]} 25. c4
{[%clk 0:02:28.9]} 25... dxc4 {[%clk 0:02:50.4]} 26. bxc4 {[%clk 0:02:30.8]}
26... c5 {[%clk 0:02:51.2]} 27. Kd3 {[%clk 0:02:25.6]} 27... Nd7 {[%clk
0:02:41.8]} 28. Ne2 {[%clk 0:02:19.1]} 28... cxd4 {[%clk 0:02:30.7]} 29. Kxd4
{[%clk 0:02:21]} 29... Nc5 {[%clk 0:02:27.3]} 30. g3 {[%clk 0:01:52.3]} 30...
Ne6+ {[%clk 0:02:24.9]} 31. Kd3 {[%clk 0:01:21.9]} 31... Ng5 {[%clk 0:02:24.7]}
32. f4 {[%clk 0:01:23.1]} 32... Nxh3 {[%clk 0:02:23.8]} 33. Ke3 {[%clk
0:00:57.6]} 33... Kc5 {[%clk 0:02:10]} 34. Kf3 {[%clk 0:00:57.8]} 34... g5
{[%clk 0:02:08.6]} 35. f5 {[%clk 0:00:53.1]} 35... f6 {[%clk 0:02:02.7]} 36. g4
{[%clk 0:00:18.1]} 36... Kxc4 {[%clk 0:01:59.4]} 37. Kg3 {[%clk 0:00:19.6]}
37... Nf4 {[%clk 0:01:33]} 38. Nxf4 {[%clk 0:00:20.2]} 38... gxf4+ {[%clk
0:01:34.9]} 39. Kxf4 {[%clk 0:00:22.1]} 39... Kd4 {[%clk 0:01:31.3]} 40. g5
{[%clk 0:00:22.1]} 40... b5 {[%clk 0:01:26.5]} 41. Kg4 {[%clk 0:00:10.5]} 41...
Ke4 {[%clk 0:01:22.9]} 42. gxf6 {[%clk 0:00:03.3]} 42... gxf6 {[%clk 0:01:24.8]}
43. Kh5 {[%clk 0:00:04.3]} 43... Kxf5 {[%clk 0:01:24.8]} 0-1

[Event "*** Titled Tuesday Blitz"]
[Site "Chess.com"]
[Date "2018.10.02"]
[Round "6"]
[White "KRASAVCHIK2002"]
[Black "ajkom197"]
[Result "1/2-1/2"]
[WhiteElo "2294"]
[BlackElo "2390"]
[TimeControl "180+2"]
[EndTime "14:20:53 PDT"]
[Termination "Game drawn by repetition"]

1. e4 {[%clk 0:03:01.9]} 1... c6 {[%clk 0:03:00.7]} 2. d4 {[%clk 0:02:59.5]}
2... d5 {[%clk 0:02:59.5]} 3. exd5 {[%clk 0:03:00.5]} 3... cxd5 {[%clk
0:02:57.9]} 4. Bd3 {[%clk 0:02:57.7]} 4... Nc6 {[%clk 0:02:58.6]} 5. c3 {[%clk
0:02:54.6]} 5... Nf6 {[%clk 0:02:59]} 6. Ne2 {[%clk 0:02:54.8]} 6... Bg4 {[%clk
0:02:58.9]} 7. f3 {[%clk 0:02:55.6]} 7... Bh5 {[%clk 0:02:59.6]} 8. Bf4 {[%clk
0:02:53.9]} 8... e6 {[%clk 0:02:59]} 9. Na3 {[%clk 0:02:54.4]} 9... Bg6 {[%clk
0:02:55.4]} 10. Nc2 {[%clk 0:02:45.7]} 10... Bd6 {[%clk 0:02:54.9]} 11. O-O
{[%clk 0:02:43.9]} 11... O-O {[%clk 0:02:54.2]} 12. Bxg6 {[%clk 0:02:39.2]}
12... hxg6 {[%clk 0:02:55]} 13. Qd2 {[%clk 0:02:33.3]} 13... Re8 {[%clk
0:02:54.9]} 14. Rfe1 {[%clk 0:02:28.9]} 14... Rc8 {[%clk 0:02:54]} 15. Ne3
{[%clk 0:02:21.4]} 15... Qc7 {[%clk 0:02:47.9]} 16. Bxd6 {[%clk 0:02:18.3]}
16... Qxd6 {[%clk 0:02:49.8]} 17. Rad1 {[%clk 0:02:10]} 17... a6 {[%clk
0:02:49.8]} 18. Nc1 {[%clk 0:02:09.6]} 18... Na5 {[%clk 0:02:46.4]} 19. Nd3
{[%clk 0:02:09.7]} 19... Nd7 {[%clk 0:02:45.3]} 20. Ng4 {[%clk 0:02:06]} 20...
b5 {[%clk 0:02:43.5]} 21. Qf2 {[%clk 0:01:52.5]} 21... Nc6 {[%clk 0:02:38.1]}
22. a3 {[%clk 0:01:44.3]} 22... a5 {[%clk 0:02:38.5]} 23. b4 {[%clk 0:01:44]}
23... axb4 {[%clk 0:02:35.7]} 24. axb4 {[%clk 0:01:45]} 24... Ra8 {[%clk
0:02:32.1]} 25. Ra1 {[%clk 0:01:33.5]} 25... Nb6 {[%clk 0:02:31.7]} 26. Nc5
{[%clk 0:01:31.2]} 26... Na4 {[%clk 0:02:25.5]} 27. Qc2 {[%clk 0:00:47.2]} 27...
Nb6 {[%clk 0:02:16.6]} 28. g3 {[%clk 0:00:34.6]} 28... Nc4 {[%clk 0:02:07.4]}
29. f4 {[%clk 0:00:31.6]} 29... Ne7 {[%clk 0:02:03]} 30. Ne5 {[%clk 0:00:29.6]}
30... Nf5 {[%clk 0:01:56.3]} 31. Nxc4 {[%clk 0:00:29.5]} 31... dxc4 {[%clk
0:01:56.1]} 32. Qe4 {[%clk 0:00:27.4]} 32... Rxa1 {[%clk 0:01:47.3]} 33. Rxa1
{[%clk 0:00:26.7]} 33... Qd5 {[%clk 0:01:42.9]} 34. Kf2 {[%clk 0:00:23.1]} 34...
Nd6 {[%clk 0:01:39.6]} 35. Qxd5 {[%clk 0:00:21.1]} 35... exd5 {[%clk 0:01:41.5]}
36. Re1 {[%clk 0:00:21.4]} 36... Ne4+ {[%clk 0:01:29.6]} 37. Nxe4 {[%clk
0:00:21.3]} 37... dxe4 {[%clk 0:01:31.5]} 38. Ra1 {[%clk 0:00:21.1]} 38... f5
{[%clk 0:01:31]} 39. Ke3 {[%clk 0:00:20.7]} 39... Kf7 {[%clk 0:01:31.2]} 40. h4
{[%clk 0:00:21.6]} 40... Rb8 {[%clk 0:01:29.6]} 41. Ra7+ {[%clk 0:00:22.3]}
41... Kf6 {[%clk 0:01:29.4]} 42. Ra6+ {[%clk 0:00:23.3]} 42... Kf7 {[%clk
0:01:29.9]} 43. d5 {[%clk 0:00:24.4]} 43... Rd8 {[%clk 0:01:27.6]} 44. Kd4
{[%clk 0:00:24.4]} 44... Re8 {[%clk 0:01:29]} 45. Ke3 {[%clk 0:00:24.8]} 45...
Rd8 {[%clk 0:01:29.9]} 46. Kd4 {[%clk 0:00:23]} 46... Re8 {[%clk 0:01:30.4]} 47.
Ke3 {[%clk 0:00:19.8]} 47... Rd8 {[%clk 0:01:12.8]} 1/2-1/2

[Event "*** Titled Tuesday Blitz"]
[Site "Chess.com"]
[Date "2018.10.02"]
[Round "6"]
[White "Supernotar"]
[Black "dmosesov"]
[Result "0-1"]
[WhiteElo "2382"]
[BlackElo "2310"]
[TimeControl "180+2"]
[EndTime "14:21:13 PDT"]
[Termination "dmosesov won by resignation"]

1. d4 {[%clk 0:02:56.4]} 1... Nf6 {[%clk 0:03:00.7]} 2. c4 {[%clk 0:02:55.1]}
2... e6 {[%clk 0:03:02.1]} 3. Nf3 {[%clk 0:02:56.2]} 3... a6 {[%clk 0:03:03]} 4.
e3 {[%clk 0:02:56.4]} 4... d5 {[%clk 0:03:03.7]} 5. Nc3 {[%clk 0:02:56.8]} 5...
Be7 {[%clk 0:03:03.9]} 6. b3 {[%clk 0:02:56.3]} 6... O-O {[%clk 0:03:00.3]} 7.
Bb2 {[%clk 0:02:57.6]} 7... c5 {[%clk 0:02:49]} 8. cxd5 {[%clk 0:02:58.1]} 8...
cxd4 {[%clk 0:02:42.8]} 9. Nxd4 {[%clk 0:02:55.6]} 9... exd5 {[%clk 0:02:42.2]}
10. Be2 {[%clk 0:02:56.1]} 10... Nc6 {[%clk 0:02:42.7]} 11. O-O {[%clk
0:02:56.7]} 11... Nxd4 {[%clk 0:02:37.6]} 12. Qxd4 {[%clk 0:02:57.1]} 12... Be6
{[%clk 0:02:38.6]} 13. Bf3 {[%clk 0:02:58]} 13... Rc8 {[%clk 0:02:24.8]} 14.
Rfd1 {[%clk 0:02:58.2]} 14... Bc5 {[%clk 0:02:24.7]} 15. Qh4 {[%clk 0:02:52.8]}
15... Be7 {[%clk 0:02:11.2]} 16. Qg3 {[%clk 0:02:48.1]} 16... Bd6 {[%clk
0:02:10.9]} 17. Qh4 {[%clk 0:02:40.5]} 17... Be7 {[%clk 0:02:04.6]} 18. Qd4
{[%clk 0:02:34.5]} 18... Bc5 {[%clk 0:01:42.2]} 19. Qd3 {[%clk 0:02:35.4]} 19...
Qa5 {[%clk 0:01:20.2]} 20. Nxd5 {[%clk 0:02:35]} 20... Nxd5 {[%clk 0:01:20.4]}
21. Bxd5 {[%clk 0:02:35.8]} 21... Rfd8 {[%clk 0:01:21.2]} 22. e4 {[%clk
0:02:36.9]} 22... Bf8 {[%clk 0:00:52.8]} 23. Rd2 {[%clk 0:02:16.4]} 23... Bxd5
{[%clk 0:00:37.8]} 24. exd5 {[%clk 0:02:16.6]} 24... Rc5 {[%clk 0:00:35.9]} 25.
b4 {[%clk 0:01:53.3]} 25... Rcxd5 {[%clk 0:00:21.6]} 26. Qxd5 {[%clk 0:01:46]}
26... Rxd5 {[%clk 0:00:17.9]} 27. bxa5 {[%clk 0:01:46.8]} 27... Rxd2 {[%clk
0:00:19.1]} 28. Rb1 {[%clk 0:01:48.1]} 28... Bc5 {[%clk 0:00:18.8]} 29. Be5
{[%clk 0:01:42.8]} 29... Rxf2 {[%clk 0:00:15.2]} 30. Kh1 {[%clk 0:01:33.3]}
30... f6 {[%clk 0:00:16]} 31. Bg3 {[%clk 0:01:25.2]} 31... Rxa2 {[%clk
0:00:16.8]} 32. h3 {[%clk 0:01:25.2]} 32... Rxa5 {[%clk 0:00:17.4]} 33. Rxb7
{[%clk 0:01:25.7]} 33... Ra1+ {[%clk 0:00:18.3]} 34. Kh2 {[%clk 0:01:27]} 34...
Bg1+ {[%clk 0:00:18.9]} 35. Kh1 {[%clk 0:01:27.9]} 35... Bf2+ {[%clk 0:00:20.1]}
36. Kh2 {[%clk 0:01:29.5]} 36... Bxg3+ {[%clk 0:00:20.7]} 37. Kxg3 {[%clk
0:01:30.9]} 37... a5 {[%clk 0:00:22.3]} 38. Ra7 {[%clk 0:01:30.9]} 38... h5
{[%clk 0:00:22.6]} 39. Kh4 {[%clk 0:01:30.7]} 39... Ra2 {[%clk 0:00:12]} 40.
Kxh5 {[%clk 0:01:25.4]} 40... Rxg2 {[%clk 0:00:12.8]} 41. Rxa5 {[%clk
0:01:26.4]} 41... Kh7 {[%clk 0:00:13.9]} 42. Ra7 {[%clk 0:01:26.3]} 42... Rg5+
{[%clk 0:00:14.2]} 43. Kh4 {[%clk 0:01:27]} 43... Rb5 {[%clk 0:00:16.1]} 44. Kg4
{[%clk 0:01:27.5]} 44... Kh6 {[%clk 0:00:17.2]} 45. Ra4 {[%clk 0:01:27.2]} 45...
g6 {[%clk 0:00:17.5]} 46. h4 {[%clk 0:01:28.3]} 46... f5+ {[%clk 0:00:18.7]} 47.
Kg3 {[%clk 0:01:29.5]} 47... Rb3+ {[%clk 0:00:19.5]} 48. Kg2 {[%clk 0:01:29.9]}
48... Kh5 {[%clk 0:00:19.2]} 49. Rc4 {[%clk 0:01:30.6]} 49... Re3 {[%clk
0:00:19.2]} 50. Rc6 {[%clk 0:01:29.2]} 50... Re4 {[%clk 0:00:18.5]} 51. Kg3
{[%clk 0:01:30.5]} 51... Rg4+ {[%clk 0:00:19]} 52. Kf3 {[%clk 0:01:32.1]} 52...
Rxh4 {[%clk 0:00:20.1]} 0-1

[Event "*** Titled Tuesday Blitz"]
[Site "Chess.com"]
[Date "2018.10.02"]
[Round "6"]
[White "wonderfultime"]
[Black "Tjktiger"]
[Result "1-0"]
[WhiteElo "2859"]
[BlackElo "2707"]
[TimeControl "180+2"]
[EndTime "14:21:14 PDT"]
[Termination "wonderfultime won on time"]

1. d4 {[%clk 0:03:00.6]} 1... d6 {[%clk 0:02:59.2]} 2. Nf3 {[%clk 0:03:01.6]}
2... g6 {[%clk 0:02:59.7]} 3. g3 {[%clk 0:02:59.7]} 3... Bg7 {[%clk 0:03:00.7]}
4. Bg2 {[%clk 0:03:01.3]} 4... Nf6 {[%clk 0:03:02.6]} 5. O-O {[%clk 0:03:02.6]}
5... O-O {[%clk 0:03:04.5]} 6. c4 {[%clk 0:03:00.5]} 6... Nc6 {[%clk 0:03:05.4]}
7. Nc3 {[%clk 0:02:58.3]} 7... e5 {[%clk 0:03:06.6]} 8. dxe5 {[%clk 0:02:54.2]}
8... Nxe5 {[%clk 0:03:07.7]} 9. Nxe5 {[%clk 0:02:24.3]} 9... dxe5 {[%clk
0:03:09.6]} 10. Qxd8 {[%clk 0:02:25.9]} 10... Rxd8 {[%clk 0:03:07.2]} 11. Bg5
{[%clk 0:02:27.8]} 11... Rd7 {[%clk 0:03:07.6]} 12. Rfd1 {[%clk 0:02:21]} 12...
c6 {[%clk 0:03:07.4]} 13. h3 {[%clk 0:02:00]} 13... h6 {[%clk 0:03:06.6]} 14.
Be3 {[%clk 0:02:01.1]} 14... Rxd1+ {[%clk 0:03:02.8]} 15. Rxd1 {[%clk 0:02:03]}
15... Be6 {[%clk 0:03:04.1]} 16. b3 {[%clk 0:02:04.1]} 16... Bf8 {[%clk
0:02:59.3]} 17. Na4 {[%clk 0:01:59.3]} 17... Nd7 {[%clk 0:02:58.8]} 18. Kh2
{[%clk 0:01:56.4]} 18... Kg7 {[%clk 0:02:56.1]} 19. h4 {[%clk 0:01:57.7]} 19...
f5 {[%clk 0:02:53.3]} 20. f3 {[%clk 0:01:47]} 20... Be7 {[%clk 0:02:47]} 21. Bh3
{[%clk 0:01:47.5]} 21... g5 {[%clk 0:02:44.9]} 22. Bf2 {[%clk 0:01:44.2]} 22...
Kf7 {[%clk 0:02:20]} 23. hxg5 {[%clk 0:01:30]} 23... hxg5 {[%clk 0:02:20.1]} 24.
Kg1 {[%clk 0:01:31]} 24... a5 {[%clk 0:01:54.5]} 25. e4 {[%clk 0:01:08.4]} 25...
fxe4 {[%clk 0:01:05.2]} 26. Bxe6+ {[%clk 0:01:08.5]} 26... Kxe6 {[%clk
0:01:07.1]} 27. Rxd7 {[%clk 0:01:10.1]} 27... Kxd7 {[%clk 0:01:07.5]} 28. Nb6+
{[%clk 0:01:11]} 28... Ke6 {[%clk 0:01:08.5]} 29. Nxa8 {[%clk 0:01:11.7]} 29...
exf3 {[%clk 0:01:10.1]} 30. Be3 {[%clk 0:01:10.4]} 30... g4 {[%clk 0:01:06.7]}
31. Nb6 {[%clk 0:01:09.4]} 31... Kf5 {[%clk 0:01:02.7]} 32. Kf2 {[%clk 0:01:01]}
32... Ke4 {[%clk 0:01:03.5]} 33. Nd7 {[%clk 0:00:55.3]} 33... b5 {[%clk
0:00:52]} 34. cxb5 {[%clk 0:00:55.4]} 34... cxb5 {[%clk 0:00:53.9]} 35. Bb6
{[%clk 0:00:40.3]} 35... Kd5 {[%clk 0:00:07.7]} 36. Be3 {[%clk 0:00:19.9]} 1-0

[Event "*** Titled Tuesday Blitz"]
[Site "Chess.com"]
[Date "2018.10.02"]
[Round "6"]
[White "Nathan_Filgueiras"]
[Black "PowerThinking2650"]
[Result "0-1"]
[WhiteElo "2181"]
[BlackElo "2338"]
[TimeControl "180+2"]
[EndTime "14:21:23 PDT"]
[Termination "PowerThinking2650 won by resignation"]

1. e4 {[%clk 0:03:01.9]} 1... e5 {[%clk 0:03:00.6]} 2. Nf3 {[%clk 0:03:03.1]}
2... Nc6 {[%clk 0:02:58.3]} 3. Bc4 {[%clk 0:03:04.1]} 3... Nf6 {[%clk
0:02:57.6]} 4. d3 {[%clk 0:03:04]} 4... h6 {[%clk 0:02:57.7]} 5. O-O {[%clk
0:03:02.1]} 5... d6 {[%clk 0:02:58.4]} 6. c3 {[%clk 0:02:58.7]} 6... g6 {[%clk
0:02:58.6]} 7. d4 {[%clk 0:02:55.7]} 7... Qe7 {[%clk 0:02:59.1]} 8. Re1 {[%clk
0:02:53.8]} 8... Bg7 {[%clk 0:02:59.1]} 9. h3 {[%clk 0:02:54.2]} 9... O-O {[%clk
0:02:59.3]} 10. Be3 {[%clk 0:02:53.2]} 10... Kh7 {[%clk 0:02:59.4]} 11. Nbd2
{[%clk 0:02:50]} 11... Nh5 {[%clk 0:02:59.6]} 12. d5 {[%clk 0:02:43.3]} 12...
Nd8 {[%clk 0:02:49.7]} 13. Nf1 {[%clk 0:02:42.9]} 13... f6 {[%clk 0:02:42.9]}
14. Bd3 {[%clk 0:02:40.7]} 14... Nf7 {[%clk 0:02:41.5]} 15. c4 {[%clk
0:02:39.1]} 15... Ng5 {[%clk 0:02:38.3]} 16. b4 {[%clk 0:02:14.6]} 16... a5
{[%clk 0:02:31.1]} 17. a3 {[%clk 0:02:05.5]} 17... axb4 {[%clk 0:02:31.3]} 18.
Nxg5+ {[%clk 0:02:05.7]} 18... fxg5 {[%clk 0:02:29.2]} 19. axb4 {[%clk
0:02:07.6]} 19... Rxa1 {[%clk 0:02:27.8]} 20. Qxa1 {[%clk 0:02:08.2]} 20... Nf4
{[%clk 0:02:29.7]} 21. Qc3 {[%clk 0:02:01.8]} 21... g4 {[%clk 0:02:22.8]} 22.
hxg4 {[%clk 0:01:55.9]} 22... Bxg4 {[%clk 0:02:24.7]} 23. Nh2 {[%clk 0:01:51.7]}
23... Bh5 {[%clk 0:02:12.4]} 24. Bf1 {[%clk 0:01:47]} 24... Qg5 {[%clk
0:02:11.3]} 25. g3 {[%clk 0:01:45.4]} 25... Bg4 {[%clk 0:01:36.7]} 26. Bg2
{[%clk 0:01:20.9]} 26... Bh3 {[%clk 0:01:18.3]} 27. Bxh3 {[%clk 0:01:09.2]}
27... Nxh3+ {[%clk 0:01:18.3]} 28. Kg2 {[%clk 0:01:10.7]} 28... Qh5 {[%clk
0:01:08.2]} 29. c5 {[%clk 0:01:08.4]} 29... g5 {[%clk 0:01:04.1]} 30. cxd6
{[%clk 0:01:04.4]} 30... cxd6 {[%clk 0:01:04.6]} 31. Qd3 {[%clk 0:00:57.8]}
31... Nf4+ {[%clk 0:00:42]} 32. gxf4 {[%clk 0:00:39.1]} 32... exf4 {[%clk
0:00:43.1]} 33. Bd4 {[%clk 0:00:40.2]} 33... f3+ {[%clk 0:00:33.2]} 34. Kh1
{[%clk 0:00:32.5]} 34... Rf4 {[%clk 0:00:24.8]} 35. Bxg7 {[%clk 0:00:15.8]}
35... Rh4 {[%clk 0:00:20]} 36. e5+ {[%clk 0:00:13.3]} 36... Kxg7 {[%clk
0:00:20.4]} 37. Kg1 {[%clk 0:00:04.9]} 37... Rxh2 {[%clk 0:00:20.4]} 38. Qxf3
{[%clk 0:00:03.4]} 38... Qxf3 {[%clk 0:00:20.4]} 0-1